Workbook

Sheet Methodology
A1: METHODOLOGY
A2: The results presented in this file come from the thirteenth wave of data collection of a longitudinal study. This study was conducted through an Internet survey among the general public in all regions across Canada. A total of 2,083 respondents aged 18 and older have completed the questionnaire between May 5th, 2021 and May 12th, 2021. A total of 796 respondents participated in collection waves #1, #2, #3, #4, #5, #6, #7, #8, #9, #10, #11, #12, and #13 ; 245 participated in waves #2, #3, #4, #5, #6, #7, #8, #9, #10, #11, #12, and #13; 87 participated in waves #3, #4, #5, #6, #7, #8, #9, #10, #11, #12, #13; 163 participated in waves #4, #5, #6, #7, #8, #9, #10, #11, #12, and #13; 112 participated in waves #5, #6, #7, #8, #9, #10, #11, #12, and #13; 85 participated in waves #6, #7, #8, #9, #10, #11, #12, and #13; 158 participated in waves #7, #8, #9, #10, #11, #12, and #13; 134 participated in waves #8, #9, #10, #11, #12, and #13; 4 participated in waves #9, #10, #11, #12, and #13 ; 84 participated in waves #10, #11, #12, #13; 16 participated in waves #11, #12, and #13; 52 participated in waves #12, and #13;and 147 are new respondents in wave 13.
A3: The final results were weighted using the 2016 census data by age, sex, region, education level and the presence of children in the household to ensure a representative sample of the population.
A5: NOTES
A7: Differences in proportions
A8: According to the normal distribution, a two-tailed test is always done between two proportions and based on the unweighted total columns. The test is performed by comparing the percentage of a vertical cell with the vertical percentage formed by the complement of the cells for the relevant category (eg, the complement of men is women and the complement of the 18-24 is the one 25 and over). The test results (if they are significant at a confidence level of 95% - at least) are indicated in color in the table and with symbols.
A9: Results presented in bold red characters represent statistically lower differences when compared to the complement, while results in green characters indicate statistically higher differences when compared to the complement.
A10: The + and - symbols also indicate the direction of the significant differences : higher (+) and lower (-).
A11: The number of symbols indicate the confidence interval of the statistical test result: ++++ (99.9%); +++ (99%); ++ (95%); ---- (99.9%); --- (99%); -- (95%).
A12: All significant differences with a confidence interval greater than 95% are shown in bold in the tables.

Sheet WAVE 13 - B4 Simple
A2: AGE: In which of the following age categories do you belong?
A3: No:1 | B3: Wave
A4: BB4 | B4: Wave 1 | C4: Wave 2 | D4: Wave 3 | E4: Wave 4 | F4: Wave 5 | G4: Wave 6 | H4: Wave 7 | I4: Wave 8 | J4: Wave 9 | K4: Wave 10 | L4: Wave 11 | M4: Wave 12 | N4: Wave 13
A5: AGE
A6: Weighted Totals : | B6: 2023 | C6: 2098 | D6: 2000 | E6: 2152 | F6: 2169 | G6: 2141 | H6: 2129 | I6: 2117 | J6: 2055 | K6: 2125 | L6: 2037 | M6: 2070 | N6: 2083
A7: Unweighted Totals : | B7: 2023 | C7: 2098 | D7: 2000 | E7: 2152 | F7: 2169 | G7: 2141 | H7: 2129 | I7: 2117 | J7: 2055 | K7: 2125 | L7: 2037 | M7: 2070 | N7: 2083
A8: Between 18 and 24 | B8: 0.1086 | C8: 0.1086 | D8: 0.1026 | E8: 0.1086 | F8: 0.1027 | G8: 0.0999 | H8: 0.0983 | I8: 0.0994 | J8: 0.0966 | K8: 0.0943 | L8: 0.1086 | M8: 0.092 | N8: 0.0967
A9: Between 25 and 34 | B9: 0.1642 | C9: 0.1642 | D9: 0.1702 | E9: 0.1642 | F9: 0.1701 | G9: 0.1728 | H9: 0.1745 | I9: 0.1734 | J9: 0.1762 | K9: 0.1785 | L9: 0.1642 | M9: 0.1807 | N9: 0.1761
A10: Between 35 and 44 | B10: 0.1617 | C10: 0.1617 | D10: 0.1617 | E10: 0.1617 | F10: 0.1617 | G10: 0.1617 | H10: 0.1617 | I10: 0.1617 | J10: 0.1617 | K10: 0.1617 | L10: 0.1617 | M10: 0.1617 | N10: 0.1561
A11: Between 45 and 54 | B11: 0.1792 | C11: 0.1792 | D11: 0.1792 | E11: 0.1792 | F11: 0.1792 | G11: 0.1792 | H11: 0.1792 | I11: 0.1792 | J11: 0.1792 | K11: 0.1792 | L11: 0.1792 | M11: 0.1792 | N11: 0.1848
A12: Between 55 and 64 | B12: 0.1748 | C12: 0.1748 | D12: 0.1748 | E12: 0.1748 | F12: 0.1748 | G12: 0.1748 | H12: 0.1748 | I12: 0.1748 | J12: 0.1748 | K12: 0.1748 | L12: 0.1748 | M12: 0.1748 | N12: 0.1748
A13: Between 65 and 74 | B13: 0.159 | C13: 0.154 | D13: 0.1565 | E13: 0.1544 | F13: 0.1558 | G13: 0.1554 | H13: 0.1526 | I13: 0.153 | J13: 0.1521 | K13: 0.1532 | L13: 0.1488 | M13: 0.1485 | N13: 0.1478
A14: 75 or older | B14: 0.0526 | C14: 0.0575 | D14: 0.0551 | E14: 0.0572 | F14: 0.0558 | G14: 0.0561 | H14: 0.0589 | I14: 0.0586 | J14: 0.0594 | K14: 0.0583 | L14: 0.0627 | M14: 0.063 | N14: 0.0637
A16: QS2: What is your sex?
A18: NOTE: Changed from gender to sex at start of WAVE 4.
A19: No:2 | B19: Wave
A20: BB4 | B20: Wave 1 | C20: Wave 2 | D20: Wave 3 | E20: Wave 4 | F20: Wave 5 | G20: Wave 6 | H20: Wave 7 | I20: Wave 8 | J20: Wave 9 | K20: Wave 10 | L20: Wave 11 | M20: Wave 12 | N20: Wave 13
A21: QS2
A22: Weighted Totals : | B22: 2023 | C22: 2098 | D22: 2000 | E22: 2152 | F22: 2169 | G22: 2141 | H22: 2129 | I22: 2117 | J22: 2055 | K22: 2125 | L22: 2037 | M22: 2070 | N22: 2083
A23: Unweighted Totals : | B23: 2023 | C23: 2098 | D23: 2000 | E23: 2152 | F23: 2169 | G23: 2141 | H23: 2129 | I23: 2117 | J23: 2055 | K23: 2125 | L23: 2037 | M23: 2070 | N23: 2083
A24: Male | B24: 0.4813 | C24: 0.4805 | D24: 0.4806 | E24: 0.4811 | F24: 0.4823 | G24: 0.4821 | H24: 0.4838 | I24: 0.4849 | J24: 0.4845 | K24: 0.4846 | L24: 0.4837 | M24: 0.4825 | N24: 0.4842
A25: Female | B25: 0.5143 | C25: 0.5143 | D25: 0.5143 | E25: 0.5143 | F25: 0.5143 | G25: 0.5143 | H25: 0.5143 | I25: 0.5143 | J25: 0.5143 | K25: 0.5143 | L25: 0.5143 | M25: 0.5143 | N25: 0.5143
A26: Other | B26: 0.0044 | C26: 0.0052 | D26: 0.0051 | E26: 0.0046 | F26: 0.0035 | G26: 0.0036 | H26: 0.002 | I26: 0.0008 | J26: 0.0012 | K26: 0.0011 | L26: 0.002 | M26: 0.0032 | N26: 0.0015
A28: QS2a: What best describes your gender?
A29: No:3 | B29: Wave
A30: BB4 | B30: Wave 1 | C30: Wave 2 | D30: Wave 3 | E30: Wave 4 | F30: Wave 5 | G30: Wave 6 | H30: Wave 7 | I30: Wave 8 | J30: Wave 9 | K30: Wave 10 | L30: Wave 11 | M30: Wave 12 | N30: Wave 13
A31: QS2A
A32: Weighted Totals : | B32: 0 | C32: 0 | D32: 0 | E32: 2152 | F32: 2169 | G32: 2141 | H32: 2129 | I32: 2117 | J32: 2055 | K32: 2125 | L32: 2037 | M32: 2070 | N32: 2083
A33: Unweighted Totals : | B33: 0 | C33: 0 | D33: 0 | E33: 2152 | F33: 2169 | G33: 2141 | H33: 2129 | I33: 2117 | J33: 2055 | K33: 2125 | L33: 2037 | M33: 2070 | N33: 2083
A34: Man | B34: 0 | C34: 0 | D34: 0 | E34: 0.4788 | F34: 0.483 | G34: 0.4808 | H34: 0.4834 | I34: 0.4826 | J34: 0.4823 | K34: 0.4832 | L34: 0.48 | M34: 0.4797 | N34: 0.4801
A35: Woman | B35: 0 | C35: 0 | D35: 0 | E35: 0.5156 | F35: 0.5124 | G35: 0.5151 | H35: 0.514 | I35: 0.5153 | J35: 0.5165 | K35: 0.5136 | L35: 0.513 | M35: 0.5133 | N35: 0.5175
A36: Transgender/two-spirit/non-binary | B36: 0 | C36: 0 | D36: 0 | E36: 0.005 | F36: 0.004 | G36: 0.004 | H36: 0.0026 | I36: 0.002 | J36: 0.0013 | K36: 0.0021 | L36: 0.0052 | M36: 0.0058 | N36: 0.0018
A37: Other | B37: 0 | C37: 0 | D37: 0 | E37: 0.0006 | F37: 0.0006 | G37: 0 | H37: 0 | I37: 0.0001 | J37: 0 | K37: 0.0011 | L37: 0.0017 | M37: 0.0012 | N37: 0.0005
A39: QS3: What is the highest level of formal education that you have completed?
A40: No:4 | B40: Wave
A41: BB4 | B41: Wave 1 | C41: Wave 2 | D41: Wave 3 | E41: Wave 4 | F41: Wave 5 | G41: Wave 6 | H41: Wave 7 | I41: Wave 8 | J41: Wave 9 | K41: Wave 10 | L41: Wave 11 | M41: Wave 12 | N41: Wave 13
A42: QS3
A43: Weighted Totals : | B43: 2023 | C43: 2098 | D43: 2000 | E43: 2152 | F43: 2169 | G43: 2141 | H43: 2129 | I43: 2117 | J43: 2055 | K43: 2125 | L43: 2037 | M43: 2070 | N43: 2083
A44: Unweighted Totals : | B44: 2023 | C44: 2098 | D44: 2000 | E44: 2152 | F44: 2169 | G44: 2141 | H44: 2129 | I44: 2117 | J44: 2055 | K44: 2125 | L44: 2037 | M44: 2070 | N44: 2083
A45: Grade 8 or less | B45: 0.0027 | C45: 0.0014 | D45: 0.001 | E45: 0.001 | F45: 0.0018 | G45: 0.0019 | H45: 0.0016 | I45: 0.0015 | J45: 0.0018 | K45: 0.0018 | L45: 0.0037 | M45: 0.0038 | N45: 0.0032
A46: Some high school | B46: 0.0316 | C46: 0.0318 | D46: 0.03 | E46: 0.0263 | F46: 0.0261 | G46: 0.0285 | H46: 0.0264 | I46: 0.0245 | J46: 0.0277 | K46: 0.027 | L46: 0.0277 | M46: 0.0276 | N46: 0.0288
A47: High school diploma or equivalent | B47: 0.208 | C47: 0.1872 | D47: 0.1907 | E47: 0.1808 | F47: 0.188 | G47: 0.1881 | H47: 0.1892 | I47: 0.1851 | J47: 0.1874 | K47: 0.1913 | L47: 0.1912 | M47: 0.1817 | N47: 0.1868
A48: Registered Apprenticeship or other trades certificate or diploma | B48: 0.0677 | C48: 0.077 | D48: 0.0752 | E48: 0.0771 | F48: 0.0757 | G48: 0.0729 | H48: 0.0677 | I48: 0.0759 | J48: 0.0762 | K48: 0.0743 | L48: 0.0745 | M48: 0.075 | N48: 0.0743
A49: Partial college/university education | B49: 0.1416 | C49: 0.1526 | D49: 0.1468 | E49: 0.1486 | F49: 0.1504 | G49: 0.1507 | H49: 0.1581 | I49: 0.1519 | J49: 0.1565 | K49: 0.1457 | L49: 0.1432 | M49: 0.1414 | N49: 0.1355
A50: College, CEGEP or other non-university certificate or diploma | B50: 0.2762 | C50: 0.2779 | D50: 0.2842 | E50: 0.2941 | F50: 0.286 | G50: 0.2859 | H50: 0.2848 | I50: 0.289 | J50: 0.2785 | K50: 0.288 | L50: 0.2877 | M50: 0.2986 | N50: 0.2994
A51: University certificate or diploma below bachelor's level | B51: 0.0398 | C51: 0.032 | D51: 0.0305 | E51: 0.0298 | F51: 0.03 | G51: 0.0294 | H51: 0.031 | I51: 0.0336 | J51: 0.0365 | K51: 0.0378 | L51: 0.0371 | M51: 0.0353 | N51: 0.0367
A52: Bachelor's degree | B52: 0.1644 | C52: 0.167 | D52: 0.1703 | E52: 0.1705 | F52: 0.1692 | G52: 0.1678 | H52: 0.1659 | I52: 0.1634 | J52: 0.1631 | K52: 0.1623 | L52: 0.1643 | M52: 0.164 | N52: 0.1623
A53: Postgraduate degree above bachelor's level | B53: 0.0679 | C53: 0.0731 | D53: 0.0713 | E53: 0.0717 | F53: 0.0728 | G53: 0.0748 | H53: 0.0752 | I53: 0.0751 | J53: 0.0725 | K53: 0.0719 | L53: 0.0707 | M53: 0.0727 | N53: 0.073
A55: QS4: Are you a health care provider (i.e., nurse, medical doctor, paramedic, first responder, nurse practitioner, pharmacist etc.)?
A56: No:5 | B56: Wave
A57: BB4 | B57: Wave 1 | C57: Wave 2 | D57: Wave 3 | E57: Wave 4 | F57: Wave 5 | G57: Wave 6 | H57: Wave 7 | I57: Wave 8 | J57: Wave 9 | K57: Wave 10 | L57: Wave 11 | M57: Wave 12 | N57: Wave 13
A58: QS4
A59: Weighted Totals : | B59: 2023 | C59: 1961 | D59: 2000 | E59: 2152 | F59: 2169 | G59: 2141 | H59: 2129 | I59: 2117 | J59: 2055 | K59: 2125 | L59: 2037 | M59: 2070 | N59: 2083
A60: Unweighted Totals : | B60: 2023 | C60: 1969 | D60: 2000 | E60: 2152 | F60: 2169 | G60: 2141 | H60: 2129 | I60: 2117 | J60: 2055 | K60: 2125 | L60: 2037 | M60: 2070 | N60: 2083
A61: Yes | B61: 0.0786 | C61: 0.0633 | D61: 0.0558 | E61: 0.0627 | F61: 0.0673 | G61: 0.0752 | H61: 0.0696 | I61: 0.0674 | J61: 0.0649 | K61: 0.0636 | L61: 0.0721 | M61: 0.0645 | N61: 0.0615
A62: No | B62: 0.9214 | C62: 0.9367 | D62: 0.9442 | E62: 0.9373 | F62: 0.9327 | G62: 0.9248 | H62: 0.9304 | I62: 0.9326 | J62: 0.9351 | K62: 0.9364 | L62: 0.9279 | M62: 0.9355 | N62: 0.9385
A64: QS4a: Are you a frontline worker (i.e., gas station attendant, grocery store clerk, etc.)?
A65: No:6 | B65: Wave
A66: BB4 | B66: Wave 1 | C66: Wave 2 | D66: Wave 3 | E66: Wave 4 | F66: Wave 5 | G66: Wave 6 | H66: Wave 7 | I66: Wave 8 | J66: Wave 9 | K66: Wave 10 | L66: Wave 11 | M66: Wave 12 | N66: Wave 13
A67: QS4A
A68: Weighted Totals : | B68: 0 | C68: 2098 | D68: 2000 | E68: 2152 | F68: 2169 | G68: 2141 | H68: 2129 | I68: 2117 | J68: 2055 | K68: 2125 | L68: 2037 | M68: 2070 | N68: 2083
A69: Unweighted Totals : | B69: 0 | C69: 2098 | D69: 2000 | E69: 2152 | F69: 2169 | G69: 2141 | H69: 2129 | I69: 2117 | J69: 2055 | K69: 2125 | L69: 2037 | M69: 2070 | N69: 2083
A70: Yes | B70: 0 | C70: 0.1866 | D70: 0.1645 | E70: 0.1721 | F70: 0.1687 | G70: 0.1764 | H70: 0.1797 | I70: 0.1714 | J70: 0.1687 | K70: 0.1732 | L70: 0.1879 | M70: 0.1736 | N70: 0.1768
A71: No | B71: 0 | C71: 0.8134 | D71: 0.8355 | E71: 0.8279 | F71: 0.8313 | G71: 0.8236 | H71: 0.8203 | I71: 0.8286 | J71: 0.8313 | K71: 0.8268 | L71: 0.8121 | M71: 0.8264 | N71: 0.8232
A73: QS5: Do you have a serious, long-term illness, like diabetes, emphysema, or high blood pressure?
A74: No:7 | B74: Wave
A75: BB4 | B75: Wave 1 | C75: Wave 2 | D75: Wave 3 | E75: Wave 4 | F75: Wave 5 | G75: Wave 6 | H75: Wave 7 | I75: Wave 8 | J75: Wave 9 | K75: Wave 10 | L75: Wave 11 | M75: Wave 12 | N75: Wave 13
A76: QS5
A77: Weighted Totals : | B77: 2023 | C77: 1961 | D77: 2000 | E77: 2152 | F77: 2169 | G77: 2141 | H77: 2129 | I77: 2117 | J77: 2055 | K77: 2125 | L77: 2037 | M77: 2070 | N77: 2083
A78: Unweighted Totals : | B78: 2023 | C78: 1969 | D78: 2000 | E78: 2152 | F78: 2169 | G78: 2141 | H78: 2129 | I78: 2117 | J78: 2055 | K78: 2125 | L78: 2037 | M78: 2070 | N78: 2083
A79: Yes | B79: 0.2492 | C79: 0.2551 | D79: 0.2551 | E79: 0.2525 | F79: 0.2589 | G79: 0.2733 | H79: 0.2868 | I79: 0.2896 | J79: 0.2847 | K79: 0.2711 | L79: 0.2766 | M79: 0.2831 | N79: 0.2893
A80: No | B80: 0.7257 | C80: 0.7206 | D80: 0.7226 | E80: 0.7293 | F80: 0.7186 | G80: 0.7115 | H80: 0.6974 | I80: 0.7007 | J80: 0.706 | K80: 0.7126 | L80: 0.7113 | M80: 0.7046 | N80: 0.6941
A81: Don’t know | B81: 0.0251 | C81: 0.0243 | D81: 0.0223 | E81: 0.0183 | F81: 0.0225 | G81: 0.0151 | H81: 0.0157 | I81: 0.0097 | J81: 0.0092 | K81: 0.0163 | L81: 0.0121 | M81: 0.0123 | N81: 0.0166
A83: QS6: What is the size of the community you live in?
A84: No:8 | B84: Wave
A85: BB4 | B85: Wave 1 | C85: Wave 2 | D85: Wave 3 | E85: Wave 4 | F85: Wave 5 | G85: Wave 6 | H85: Wave 7 | I85: Wave 8 | J85: Wave 9 | K85: Wave 10 | L85: Wave 11 | M85: Wave 12 | N85: Wave 13
A86: QS6
A87: Weighted Totals : | B87: 2023 | C87: 1961 | D87: 2000 | E87: 2152 | F87: 2169 | G87: 2141 | H87: 2129 | I87: 2117 | J87: 2055 | K87: 2125 | L87: 2037 | M87: 2070 | N87: 2083
A88: Unweighted Totals : | B88: 2023 | C88: 1969 | D88: 2000 | E88: 2152 | F88: 2169 | G88: 2141 | H88: 2129 | I88: 2117 | J88: 2055 | K88: 2125 | L88: 2037 | M88: 2070 | N88: 2083
A89: Major metropolitan area with population of 1,000,000 or more | B89: 0.2956 | C89: 0.2964 | D89: 0.2953 | E89: 0.2956 | F89: 0.3041 | G89: 0.3006 | H89: 0.316 | I89: 0.3054 | J89: 0.3031 | K89: 0.3095 | L89: 0.3101 | M89: 0.3175 | N89: 0.3047
A90: Large urban centre with population of 100,000 or more | B90: 0.2964 | C90: 0.3041 | D90: 0.3089 | E90: 0.3119 | F90: 0.3079 | G90: 0.3034 | H90: 0.2943 | I90: 0.3144 | J90: 0.3196 | K90: 0.3213 | L90: 0.3267 | M90: 0.3135 | N90: 0.3243
A91: Medium population centre with population of between 30,000 and 99,999 | B91: 0.1686 | C91: 0.1619 | D91: 0.165 | E91: 0.1626 | F91: 0.1595 | G91: 0.1652 | H91: 0.1645 | I91: 0.1586 | J91: 0.1467 | K91: 0.1469 | L91: 0.151 | M91: 0.1532 | N91: 0.1401
A92: Small population centre with population between 1,000 and 29,999 | B92: 0.1794 | C92: 0.1777 | D92: 0.1646 | E92: 0.1724 | F92: 0.1707 | G92: 0.1704 | H92: 0.1642 | I92: 0.1596 | J92: 0.1678 | K92: 0.1632 | L92: 0.157 | M92: 0.1532 | N92: 0.1691
A93: Rural area with population of less than 1,000 | B93: 0.0601 | C93: 0.06 | D93: 0.0661 | E93: 0.0576 | F93: 0.0578 | G93: 0.0603 | H93: 0.0609 | I93: 0.0619 | J93: 0.0627 | K93: 0.0591 | L93: 0.0552 | M93: 0.0626 | N93: 0.0617
A95: QS7: In which province or territory do you live?
A96: No:9 | B96: Wave
A97: BB4 | B97: Wave 1 | C97: Wave 2 | D97: Wave 3 | E97: Wave 4 | F97: Wave 5 | G97: Wave 6 | H97: Wave 7 | I97: Wave 8 | J97: Wave 9 | K97: Wave 10 | L97: Wave 11 | M97: Wave 12 | N97: Wave 13
A98: QS7
A99: Weighted Totals : | B99: 2023 | C99: 2098 | D99: 2000 | E99: 2152 | F99: 2169 | G99: 2141 | H99: 2129 | I99: 2117 | J99: 2055 | K99: 2125 | L99: 2037 | M99: 2070 | N99: 2083
A100: Unweighted Totals : | B100: 2023 | C100: 2098 | D100: 2000 | E100: 2152 | F100: 2169 | G100: 2141 | H100: 2129 | I100: 2117 | J100: 2055 | K100: 2125 | L100: 2037 | M100: 2070 | N100: 2083
A101: Alberta | B101: 0.1118 | C101: 0.1118 | D101: 0.1118 | E101: 0.1118 | F101: 0.1118 | G101: 0.1118 | H101: 0.1118 | I101: 0.1118 | J101: 0.1118 | K101: 0.1118 | L101: 0.1118 | M101: 0.1118 | N101: 0.1118
A102: British Columbia | B102: 0.1353 | C102: 0.1353 | D102: 0.1353 | E102: 0.1353 | F102: 0.1353 | G102: 0.1353 | H102: 0.1353 | I102: 0.1353 | J102: 0.1353 | K102: 0.1353 | L102: 0.1353 | M102: 0.1353 | N102: 0.1353
A103: Manitoba | B103: 0.035 | C103: 0.035 | D103: 0.035 | E103: 0.035 | F103: 0.035 | G103: 0.035 | H103: 0.035 | I103: 0.035 | J103: 0.035 | K103: 0.035 | L103: 0.035 | M103: 0.035 | N103: 0.035
A104: New Brunswick | B104: 0.0218 | C104: 0.0218 | D104: 0.0218 | E104: 0.0218 | F104: 0.0218 | G104: 0.0218 | H104: 0.0218 | I104: 0.0218 | J104: 0.0218 | K104: 0.0218 | L104: 0.0218 | M104: 0.0218 | N104: 0.0218
A105: Newfoundland and Labrador | B105: 0.0153 | C105: 0.0153 | D105: 0.0153 | E105: 0.0153 | F105: 0.0153 | G105: 0.0153 | H105: 0.0153 | I105: 0.0153 | J105: 0.0153 | K105: 0.0153 | L105: 0.0153 | M105: 0.0153 | N105: 0.0153
A106: Northwest Territories | B106: 0.0014 | C106: 0.0015 | D106: 0.0014 | E106: 0.0013 | F106: 0.0014 | G106: 0.0014 | H106: 0.0014 | I106: 0.0014 | J106: 0.0017 | K106: 0.0014 | L106: 0.0016 | M106: 0.0015 | N106: 0.0015
A107: Nova Scotia | B107: 0.027 | C107: 0.027 | D107: 0.027 | E107: 0.027 | F107: 0.027 | G107: 0.027 | H107: 0.027 | I107: 0.027 | J107: 0.027 | K107: 0.027 | L107: 0.027 | M107: 0.027 | N107: 0.027
A108: Nunavut | B108: 0 | C108: 0 | D108: 0 | E108: 0.0002 | F108: 0.0002 | G108: 0.0002 | H108: 0.0002 | I108: 0.0003 | J108: 0.0003 | K108: 0.0002 | L108: 0.0002 | M108: 0.0002 | N108: 0
A109: Ontario | B109: 0.3828 | C109: 0.3829 | D109: 0.3829 | E109: 0.3828 | F109: 0.3829 | G109: 0.3829 | H109: 0.3828 | I109: 0.3828 | J109: 0.3829 | K109: 0.3829 | L109: 0.3829 | M109: 0.3829 | N109: 0.3828
A110: Prince Edward Island | B110: 0.0041 | C110: 0.0041 | D110: 0.0041 | E110: 0.0041 | F110: 0.0041 | G110: 0.0041 | H110: 0.0041 | I110: 0.0041 | J110: 0.0041 | K110: 0.0041 | L110: 0.0041 | M110: 0.0041 | N110: 0.0041
A111: Quebec | B111: 0.234 | C111: 0.234 | D111: 0.234 | E111: 0.234 | F111: 0.234 | G111: 0.234 | H111: 0.234 | I111: 0.234 | J111: 0.234 | K111: 0.234 | L111: 0.234 | M111: 0.234 | N111: 0.234
A112: Saskatchewan | B112: 0.0299 | C112: 0.0299 | D112: 0.0299 | E112: 0.0299 | F112: 0.0299 | G112: 0.0299 | H112: 0.0299 | I112: 0.0299 | J112: 0.0299 | K112: 0.0299 | L112: 0.0299 | M112: 0.0299 | N112: 0.0299
A113: Yukon | B113: 0.0015 | C113: 0.0015 | D113: 0.0015 | E113: 0.0013 | F113: 0.0013 | G113: 0.0013 | H113: 0.0013 | I113: 0.0012 | J113: 0.001 | K113: 0.0013 | L113: 0.0011 | M113: 0.0012 | N113: 0.0015
A115: QS8: Do you have or live with children under 18 years of age in your home?
A116: No:10 | B116: Wave
A117: BB4 | B117: Wave 1 | C117: Wave 2 | D117: Wave 3 | E117: Wave 4 | F117: Wave 5 | G117: Wave 6 | H117: Wave 7 | I117: Wave 8 | J117: Wave 9 | K117: Wave 10 | L117: Wave 11 | M117: Wave 12 | N117: Wave 13
A118: QS8
A119: Weighted Totals : | B119: 2023 | C119: 2098 | D119: 2000 | E119: 2152 | F119: 2169 | G119: 2141 | H119: 2129 | I119: 2117 | J119: 2055 | K119: 2125 | L119: 2037 | M119: 2070 | N119: 2083
A120: Unweighted Totals : | B120: 2023 | C120: 2098 | D120: 2000 | E120: 2152 | F120: 2169 | G120: 2141 | H120: 2129 | I120: 2117 | J120: 2055 | K120: 2125 | L120: 2037 | M120: 2070 | N120: 2083
A121: Yes | B121: 0.2767 | C121: 0.2767 | D121: 0.2767 | E121: 0.2767 | F121: 0.2767 | G121: 0.2767 | H121: 0.2767 | I121: 0.2767 | J121: 0.2767 | K121: 0.2767 | L121: 0.2767 | M121: 0.2767 | N121: 0.2517
A122: No | B122: 0.7233 | C122: 0.7233 | D122: 0.7233 | E122: 0.7233 | F122: 0.7233 | G122: 0.7233 | H122: 0.7233 | I122: 0.7233 | J122: 0.7233 | K122: 0.7233 | L122: 0.7233 | M122: 0.7233 | N122: 0.7483
A124: QS8A: How many children under 18 years of age live in your home?
A125: No:11 | B125: Wave
A126: BB4 | B126: Wave 1 | C126: Wave 2 | D126: Wave 3 | E126: Wave 4 | F126: Wave 5 | G126: Wave 6 | H126: Wave 7 | I126: Wave 8 | J126: Wave 9 | K126: Wave 10 | L126: Wave 11 | M126: Wave 12 | N126: Wave 13
A127: QS8A
A128: Weighted Totals : | B128: 0 | C128: 0 | D128: 0 | E128: 599 | F128: 595 | G128: 591 | H128: 583 | I128: 571 | J128: 546 | K128: 530 | L128: 492 | M128: 500 | N128: 524
A129: Unweighted Totals : | B129: 0 | C129: 0 | D129: 0 | E129: 598 | F129: 601 | G129: 594 | H129: 579 | I129: 564 | J129: 529 | K129: 508 | L129: 477 | M129: 487 | N129: 497
A130: 1 | B130: 0 | C130: 0 | D130: 0 | E130: 0.5062 | F130: 0.5083 | G130: 0.542 | H130: 0.524 | I130: 0.5159 | J130: 0.4979 | K130: 0.4806 | L130: 0.519 | M130: 0.4983 | N130: 0.4852
A131: 2 | B131: 0 | C131: 0 | D131: 0 | E131: 0.3453 | F131: 0.3505 | G131: 0.3393 | H131: 0.339 | I131: 0.3279 | J131: 0.3406 | K131: 0.3664 | L131: 0.3432 | M131: 0.3624 | N131: 0.394
A132: 3+ | B132: 0 | C132: 0 | D132: 0 | E132: 0.1485 | F132: 0.1411 | G132: 0.1187 | H132: 0.137 | I132: 0.1563 | J132: 0.1615 | K132: 0.153 | L132: 0.1378 | M132: 0.1393 | N132: 0.1207
A133: Mean : | B133: * | C133: * | D133: * | E133: 1.7 | F133: 1.7 | G133: 1.6 | H133: 1.7 | I133: 1.7 | J133: 1.7 | K133: 1.7 | L133: 1.6 | M133: 1.7 | N133: 1.7
A134: Standard Deviation : | B134: * | C134: * | D134: * | E134: 1 | F134: 0.8 | G134: 0.8 | H134: 1 | I134: 0.9 | J134: 0.9 | K134: 0.8 | L134: 0.8 | M134: 0.8 | N134: 0.9
A135: Student's T : | B135: * | C135: * | D135: * | E135: -- | F135: -- | G135: 99 | H135: -- | I135: -- | J135: -- | K135: -- | L135: -- | M135: -- | N135: --
A137: QS8B. What are the ages of the children living in your home? Select all that apply.
A138: No:12 | B138: Wave
A139: BB4 | B139: Wave 1 | C139: Wave 2 | D139: Wave 3 | E139: Wave 4 | F139: Wave 5 | G139: Wave 6 | H139: Wave 7 | I139: Wave 8 | J139: Wave 9 | K139: Wave 10 | L139: Wave 11 | M139: Wave 12 | N139: Wave 13
A140: QS8B
A141: Weighted Totals : | B141: 0 | C141: 0 | D141: 0 | E141: 599 | F141: 595 | G141: 591 | H141: 583 | I141: 571 | J141: 546 | K141: 530 | L141: 492 | M141: 500 | N141: 524
A142: Unweighted Totals : | B142: 0 | C142: 0 | D142: 0 | E142: 598 | F142: 601 | G142: 594 | H142: 579 | I142: 564 | J142: 529 | K142: 508 | L142: 477 | M142: 487 | N142: 497
A143: Under 6 years old | B143: 0 | C143: 0 | D143: 0 | E143: 0.3903 | F143: 0.4051 | G143: 0.3776 | H143: 0.3982 | I143: 0.4105 | J143: 0.4173 | K143: 0.4059 | L143: 0.3879 | M143: 0.4193 | N143: 0.4234
A144: 6 to 11 years old | B144: 0 | C144: 0 | D144: 0 | E144: 0.3881 | F144: 0.3765 | G144: 0.3822 | H144: 0.3615 | I144: 0.379 | J144: 0.3755 | K144: 0.3991 | L144: 0.3736 | M144: 0.3931 | N144: 0.3793
A145: 12 to 17 years old | B145: 0 | C145: 0 | D145: 0 | E145: 0.4899 | F145: 0.475 | G145: 0.4821 | H145: 0.4955 | I145: 0.4992 | J145: 0.4818 | K145: 0.4921 | L145: 0.5056 | M145: 0.4757 | N145: 0.465
A147: QS10: Which of the following best describes the impact that COVID-19 has had on your employment?
A148: No:13 | B148: Wave
A149: BB4 | B149: Wave 1 | C149: Wave 2 | D149: Wave 3 | E149: Wave 4 | F149: Wave 5 | G149: Wave 6 | H149: Wave 7 | I149: Wave 8 | J149: Wave 9 | K149: Wave 10 | L149: Wave 11 | M149: Wave 12 | N149: Wave 13
A150: QS10
A151: Weighted Totals : | B151: 1308 | C151: 1346 | D151: 1250 | E151: 1356 | F151: 1361 | G151: 1346 | H151: 1336 | I151: 1322 | J151: 1286 | K151: 1352 | L151: 1286 | M151: 1305 | N151: 2083
A152: Unweighted Totals : | B152: 1327 | C152: 1373 | D152: 1278 | E152: 1371 | F152: 1382 | G152: 1367 | H152: 1349 | I152: 1338 | J152: 1299 | K152: 1346 | L152: 1271 | M152: 1304 | N152: 2083
A153: You have temporarily lost your job | B153: 0.2321 | C153: 0.2099 | D153: 0.2118 | E153: 0.1835 | F153: 0.1683 | G153: 0.1567 | H153: 0.1454 | I153: 0.1358 | J153: 0.1019 | K153: 0.0825 | L153: 0.0986 | M153: 0.1028 | N153: 0.0578
A154: You have permanently lost your job | B154: 0.0357 | C154: 0.0335 | D154: 0.0332 | E154: 0.0417 | F154: 0.0475 | G154: 0.0405 | H154: 0.039 | I154: 0.0485 | J154: 0.0483 | K154: 0.0574 | L154: 0.0581 | M154: 0.0619 | N154: 0.0432
A155: You have suffered a loss of income / reduced working hours | B155: 0.2115 | C155: 0.1963 | D155: 0.21 | E155: 0.1966 | F155: 0.2175 | G155: 0.2258 | H155: 0.2133 | I155: 0.2353 | J155: 0.239 | K155: 0.2444 | L155: 0.2415 | M155: 0.2212 | N155: 0.1481
A156: You have experienced increased working hours | B156: 0 | C156: 0 | D156: 0 | E156: 0 | F156: 0 | G156: 0 | H156: 0 | I156: 0 | J156: 0.068 | K156: 0.0768 | L156: 0.0714 | M156: 0.0802 | N156: 0.0563
A157: Your job has not been impacted | B157: 0.4428 | C157: 0.4824 | D157: 0.4831 | E157: 0.5091 | F157: 0.4957 | G157: 0.5135 | H157: 0.5302 | I157: 0.5111 | J157: 0.4597 | K157: 0.4701 | L157: 0.4654 | M157: 0.466 | N157: 0.3068
A158: You have lost your summer job | B158: 0.0308 | C158: 0.0349 | D158: 0.0251 | E158: 0.0396 | F158: 0.032 | G158: 0.0266 | H158: 0.0277 | I158: 0.024 | J158: 0.0258 | K158: 0 | L158: 0 | M158: 0 | N158: 0
A159: You have struggled to find employment | B159: 0 | C159: 0 | D159: 0 | E159: 0 | F159: 0 | G159: 0 | H159: 0 | I159: 0 | J159: 0 | K159: 0 | L159: 0 | M159: 0 | N159: 0.0357
A160: Not applicable – you do not have a job | B160: 0.0259 | C160: 0.0308 | D160: 0.0241 | E160: 0.0192 | F160: 0.0269 | G160: 0.0295 | H160: 0.0292 | I160: 0.0305 | J160: 0.039 | K160: 0.0559 | L160: 0.0549 | M160: 0.0594 | N160: 0.3432
A161: I don't know / I prefer not to answer | B161: 0.0212 | C161: 0.0122 | D161: 0.0128 | E161: 0.0103 | F161: 0.0121 | G161: 0.0075 | H161: 0.0153 | I161: 0.0147 | J161: 0.0183 | K161: 0.0128 | L161: 0.0101 | M161: 0.0085 | N161: 0.0088
A163: QS14: Where were you born?
A164: No:14 | B164: Wave
A165: BB4 | B165: Wave 1 | C165: Wave 2 | D165: Wave 3 | E165: Wave 4 | F165: Wave 5 | G165: Wave 6 | H165: Wave 7 | I165: Wave 8 | J165: Wave 9 | K165: Wave 10 | L165: Wave 11 | M165: Wave 12 | N165: Wave 13
A166: QS14
A167: Weighted Totals : | B167: 1476 | C167: 2098 | D167: 2000 | E167: 2152 | F167: 2169 | G167: 2141 | H167: 2129 | I167: 2117 | J167: 2055 | K167: 2064 | L167: 2037 | M167: 2070 | N167: 2083
A168: Unweighted Totals : | B168: 1495 | C168: 2098 | D168: 2000 | E168: 2152 | F168: 2169 | G168: 2141 | H168: 2129 | I168: 2117 | J168: 2055 | K168: 2067 | L168: 2037 | M168: 2070 | N168: 2083
A169: Born in Canada | B169: 0.8317 | C169: 0.8315 | D169: 0.8391 | E169: 0.8414 | F169: 0.8368 | G169: 0.8327 | H169: 0.8349 | I169: 0.8347 | J169: 0.8333 | K169: 0.8362 | L169: 0.8368 | M169: 0.8352 | N169: 0.8394
A170: United Kingdom | B170: 0.0304 | C170: 0.0273 | D170: 0.0283 | E170: 0.0286 | F170: 0.0279 | G170: 0.0284 | H170: 0.0258 | I170: 0.0293 | J170: 0.0263 | K170: 0.0261 | L170: 0.0281 | M170: 0.0278 | N170: 0.0292
A171: China | B171: 0.0213 | C171: 0.0167 | D171: 0.019 | E171: 0.0198 | F171: 0.0226 | G171: 0.0198 | H171: 0.0187 | I171: 0.0177 | J171: 0.0167 | K171: 0.0173 | L171: 0.0188 | M171: 0.0196 | N171: 0.0205
A172: India | B172: 0.0071 | C172: 0.0107 | D172: 0.0135 | E172: 0.0119 | F172: 0.0126 | G172: 0.0136 | H172: 0.0145 | I172: 0.0111 | J172: 0.0054 | K172: 0.0053 | L172: 0.0088 | M172: 0.009 | N172: 0.0059
A173: United States | B173: 0.0141 | C173: 0.0147 | D173: 0.0139 | E173: 0.0121 | F173: 0.0118 | G173: 0.0118 | H173: 0.0106 | I173: 0.0111 | J173: 0.0104 | K173: 0.0099 | L173: 0.0103 | M173: 0.0102 | N173: 0.0107
A174: Philippines | B174: 0.0069 | C174: 0.0074 | D174: 0.0068 | E174: 0.0077 | F174: 0.0081 | G174: 0.0089 | H174: 0.0096 | I174: 0.009 | J174: 0.0082 | K174: 0.0082 | L174: 0.0079 | M174: 0.0073 | N174: 0.006
A175: Born outside Canada (please specify the country): | B175: 0.0879 | C175: 0.0912 | D175: 0.0787 | E175: 0.0778 | F175: 0.0796 | G175: 0.0841 | H175: 0.0857 | I175: 0.087 | J175: 0.0992 | K175: 0.0966 | L175: 0.089 | M175: 0.0899 | N175: 0.0883
A176: Don't know / Prefer not to answer | B176: 0.0005 | C176: 0.0006 | D176: 0.0008 | E176: 0.0007 | F176: 0.0007 | G176: 0.0007 | H176: 0.0003 | I176: 0.0003 | J176: 0.0003 | K176: 0.0003 | L176: 0.0004 | M176: 0.001 | N176: 0
A178: QS14a: In what year did you first move to Canada?
A179: No:15 | B179: Wave
A180: BB4 | B180: Wave 1 | C180: Wave 2 | D180: Wave 3 | E180: Wave 4 | F180: Wave 5 | G180: Wave 6 | H180: Wave 7 | I180: Wave 8 | J180: Wave 9 | K180: Wave 10 | L180: Wave 11 | M180: Wave 12 | N180: Wave 13
A181: QS14A
A182: Weighted Totals : | B182: 244 | C182: 363 | D182: 322 | E182: 337 | F182: 350 | G182: 355 | H182: 349 | I182: 347 | J182: 341 | K182: 335 | L182: 320 | M182: 330 | N182: 330
A183: Unweighted Totals : | B183: 274 | C183: 407 | D183: 369 | E183: 382 | F183: 393 | G183: 394 | H183: 393 | I183: 385 | J183: 372 | K183: 361 | L183: 345 | M183: 356 | N183: 351
A184: Before 1990 | B184: 0.4974 | C184: 0.4206 | D184: 0.41 | E184: 0.4074 | F184: 0.3928 | G184: 0.3812 | H184: 0.4002 | I184: 0.4199 | J184: 0.4367 | K184: 0.4265 | L184: 0.4337 | M184: 0.4442 | N184: 0.4605
A185: 1990-1999 | B185: 0.1166 | C185: 0.1205 | D185: 0.11 | E185: 0.1189 | F185: 0.1293 | G185: 0.1209 | H185: 0.1193 | I185: 0.1289 | J185: 0.1158 | K185: 0.134 | L185: 0.1232 | M185: 0.1366 | N185: 0.135
A186: 2000-2009 | B186: 0.1521 | C186: 0.2009 | D186: 0.2112 | E186: 0.2137 | F186: 0.2227 | G186: 0.2204 | H186: 0.2261 | I186: 0.1843 | J186: 0.191 | K186: 0.1991 | L186: 0.2033 | M186: 0.207 | N186: 0.2086
A187: 2010+ | B187: 0.2339 | C187: 0.2386 | D187: 0.2466 | E187: 0.2554 | F187: 0.2451 | G187: 0.2683 | H187: 0.2458 | I187: 0.2568 | J187: 0.2436 | K187: 0.2367 | L187: 0.2346 | M187: 0.2027 | N187: 0.1959
A188: I prefer not to answer | B188: 0 | C188: 0.0193 | D188: 0.0222 | E188: 0.0046 | F188: 0.0101 | G188: 0.0093 | H188: 0.0086 | I188: 0.0101 | J188: 0.0129 | K188: 0.0036 | L188: 0.0052 | M188: 0.0095 | N188: 0
A189: Mean : | B189: 1988.8 | C189: 1991.5 | D189: 1991.7 | E189: 1992.2 | F189: 1992.5 | G189: 1993.4 | H189: 1992.6 | I189: 1991.8 | J189: 1991.2 | K189: 1991.6 | L189: 1991.5 | M189: 1990.6 | N189: 1990
A190: Standard Deviation : | B190: 21.1 | C190: 20.4 | D190: 20.9 | E190: 20.4 | F190: 20 | G190: 20 | H190: 19.7 | I190: 20.1 | J190: 20.3 | K190: 19.9 | L190: 20.1 | M190: 19.6 | N190: 19.5
A191: Student's T : | B191: 95 | C191: -- | D191: -- | E191: -- | F191: -- | G191: -- | H191: -- | I191: -- | J191: -- | K191: -- | L191: -- | M191: -- | N191: --
A193: QS15: Of what country are you a citizen?
A194: No:16 | B194: Wave
A195: BB4 | B195: Wave 1 | C195: Wave 2 | D195: Wave 3 | E195: Wave 4 | F195: Wave 5 | G195: Wave 6 | H195: Wave 7 | I195: Wave 8 | J195: Wave 9 | K195: Wave 10 | L195: Wave 11 | M195: Wave 12 | N195: Wave 13
A196: QS15
A197: Weighted Totals : | B197: 1231 | C197: 1720 | D197: 2000 | E197: 2152 | F197: 2169 | G197: 2141 | H197: 2129 | I197: 2117 | J197: 2055 | K197: 2027 | L197: 1898 | M197: 2070 | N197: 2083
A198: Unweighted Totals : | B198: 1252 | C198: 1732 | D198: 2000 | E198: 2152 | F198: 2169 | G198: 2141 | H198: 2129 | I198: 2117 | J198: 2055 | K198: 2026 | L198: 1905 | M198: 2070 | N198: 2083
A199: Canada | B199: 0.9616 | C199: 0.9624 | D199: 0.9602 | E199: 0.9613 | F199: 0.9595 | G199: 0.9564 | H199: 0.9605 | I199: 0.96 | J199: 0.9628 | K199: 0.9606 | L199: 0.961 | M199: 0.9653 | N199: 0.9693
A200: UK | B200: 0.014 | C200: 0.0128 | D200: 0.0121 | E200: 0.0138 | F200: 0.0133 | G200: 0.0148 | H200: 0.0134 | I200: 0.0137 | J200: 0.0134 | K200: 0.0129 | L200: 0.0135 | M200: 0.012 | N200: 0.0134
A201: India | B201: 0.0042 | C201: 0.0047 | D201: 0.0068 | E201: 0.0054 | F201: 0.0067 | G201: 0.0075 | H201: 0.011 | I201: 0.008 | J201: 0.005 | K201: 0.0048 | L201: 0.0064 | M201: 0.0049 | N201: 0.0035
A202: United States | B202: 0.0112 | C202: 0.0104 | D202: 0.0093 | E202: 0.0093 | F202: 0.009 | G202: 0.0118 | H202: 0.0103 | I202: 0.0115 | J202: 0.0108 | K202: 0.01 | L202: 0.0114 | M202: 0.0095 | N202: 0.0095
A203: Other country (please specify) | B203: 0.0359 | C203: 0.0389 | D203: 0.0377 | E203: 0.0428 | F203: 0.0439 | G203: 0.0423 | H203: 0.041 | I203: 0.0387 | J203: 0.0448 | K203: 0.0419 | L203: 0.0401 | M203: 0.0413 | N203: 0.042
A205: QS16: You may belong to one or more racial or cultural groups on the following list. Are you...?
A206: No:17 | B206: Wave
A207: BB4 | B207: Wave 1 | C207: Wave 2 | D207: Wave 3 | E207: Wave 4 | F207: Wave 5 | G207: Wave 6 | H207: Wave 7 | I207: Wave 8 | J207: Wave 9 | K207: Wave 10 | L207: Wave 11 | M207: Wave 12 | N207: Wave 13
A208: QS16
A209: Weighted Totals : | B209: 1231 | C209: 1720 | D209: 2000 | E209: 2077 | F209: 2142 | G209: 2103 | H209: 2092 | I209: 2069 | J209: 2014 | K209: 1980 | L209: 1939 | M209: 2037 | N209: 2055
A210: Unweighted Totals : | B210: 1252 | C210: 1732 | D210: 2000 | E210: 2080 | F210: 2143 | G210: 2108 | H210: 2091 | I210: 2074 | J210: 2015 | K210: 1980 | L210: 1940 | M210: 2040 | N210: 2055
A211: White | B211: 0.8533 | C211: 0.8491 | D211: 0.8362 | E211: 0.8426 | F211: 0.8339 | G211: 0.8287 | H211: 0.8344 | I211: 0.8363 | J211: 0.8379 | K211: 0.8307 | L211: 0.8291 | M211: 0.8285 | N211: 0.8457
A212: South Asian (e.g., East Indian, Pakistani, Sri Lankan, etc.) | B212: 0.028 | C212: 0.0342 | D212: 0.0396 | E212: 0.0342 | F212: 0.0391 | G212: 0.0384 | H212: 0.0401 | I212: 0.0413 | J212: 0.039 | K212: 0.0378 | L212: 0.0416 | M212: 0.0409 | N212: 0.0354
A213: Chinese | B213: 0.0485 | C213: 0.0495 | D213: 0.0531 | E213: 0.0518 | F213: 0.059 | G213: 0.0596 | H213: 0.0581 | I213: 0.0527 | J213: 0.0567 | K213: 0.0666 | L213: 0.0659 | M213: 0.0617 | N213: 0.0573
A214: Black | B214: 0.0183 | C214: 0.0166 | D214: 0.0192 | E214: 0.0191 | F214: 0.0183 | G214: 0.0183 | H214: 0.0174 | I214: 0.0146 | J214: 0.0145 | K214: 0.0163 | L214: 0.0155 | M214: 0.0142 | N214: 0.0136
A215: Filipino | B215: 0.0108 | C215: 0.0093 | D215: 0.0083 | E215: 0.0101 | F215: 0.0111 | G215: 0.0122 | H215: 0.0138 | I215: 0.0118 | J215: 0.0157 | K215: 0.0155 | L215: 0.0139 | M215: 0.0142 | N215: 0.0156
A216: Latin American | B216: 0.0133 | C216: 0.0111 | D216: 0.0111 | E216: 0.0122 | F216: 0.0116 | G216: 0.0102 | H216: 0.0118 | I216: 0.0127 | J216: 0.0116 | K216: 0.0103 | L216: 0.0087 | M216: 0.0119 | N216: 0.0112
A217: Arab | B217: 0.0073 | C217: 0.0106 | D217: 0.014 | E217: 0.0131 | F217: 0.0095 | G217: 0.0127 | H217: 0.0098 | I217: 0.0074 | J217: 0.0061 | K217: 0.0068 | L217: 0.0085 | M217: 0.0083 | N217: 0.0068
A218: Southeast Asian (e.g., Vietnamese, Cambodian, Malaysian, Thai, Laotian, etc.) | B218: 0.0113 | C218: 0.0097 | D218: 0.0098 | E218: 0.0075 | F218: 0.0075 | G218: 0.0082 | H218: 0.0074 | I218: 0.0094 | J218: 0.0102 | K218: 0.011 | L218: 0.012 | M218: 0.0127 | N218: 0.0115
... 4733 more rows

Sheet WAVE 13 - B4 Detailed
A2: AGE: In which of the following age categories do you belong?
A3: No:1 | B3: Wave
A4: BB4 | B4: Wave 1 | C4: Wave 2 | D4: Wave 3 | E4: Wave 4 | F4: Wave 5 | G4: Wave 6 | H4: Wave 7 | I4: Wave 8 | J4: Wave 9 | K4: Wave 10 | L4: Wave 11 | M4: Wave 12 | N4: Wave 13
A5: AGE
A6: Weighted Totals : | B6: 2023 | C6: 2098 | D6: 2000 | E6: 2152 | F6: 2169 | G6: 2141 | H6: 2129 | I6: 2117 | J6: 2055 | K6: 2125 | L6: 2037 | M6: 2070 | N6: 2083
A7: Unweighted Totals : | B7: 2023 | C7: 2098 | D7: 2000 | E7: 2152 | F7: 2169 | G7: 2141 | H7: 2129 | I7: 2117 | J7: 2055 | K7: 2125 | L7: 2037 | M7: 2070 | N7: 2083
A8: Between 18 and 24 | B8: 220 | C8: 228 | D8: 205 | E8: 234 | F8: 223 | G8: 214 | H8: 209 | I8: 210 | J8: 198 | K8: 200 | L8: 221 | M8: 191 | N8: 201
B9: 0.1086 | C9: 0.1086 | D9: 0.1026 | E9: 0.1086 | F9: 0.1027 | G9: 0.0999 | H9: 0.0983 | I9: 0.0994 | J9: 0.0966 | K9: 0.0943 | L9: 0.1086 | M9: 0.092 | N9: 0.0967
A10: Between 25 and 34 | B10: 332 | C10: 344 | D10: 340 | E10: 353 | F10: 369 | G10: 370 | H10: 371 | I10: 367 | J10: 362 | K10: 379 | L10: 334 | M10: 374 | N10: 367
B11: 0.1642 | C11: 0.1642 | D11: 0.1702 | E11: 0.1642 | F11: 0.1701 | G11: 0.1728 | H11: 0.1745 | I11: 0.1734 | J11: 0.1762 | K11: 0.1785 | L11: 0.1642 | M11: 0.1807 | N11: 0.1761
A12: Between 35 and 44 | B12: 327 | C12: 339 | D12: 323 | E12: 348 | F12: 351 | G12: 346 | H12: 344 | I12: 342 | J12: 332 | K12: 344 | L12: 329 | M12: 335 | N12: 325
B13: 0.1617 | C13: 0.1617 | D13: 0.1617 | E13: 0.1617 | F13: 0.1617 | G13: 0.1617 | H13: 0.1617 | I13: 0.1617 | J13: 0.1617 | K13: 0.1617 | L13: 0.1617 | M13: 0.1617 | N13: 0.1561
A14: Between 45 and 54 | B14: 363 | C14: 376 | D14: 358 | E14: 386 | F14: 389 | G14: 384 | H14: 382 | I14: 379 | J14: 368 | K14: 381 | L14: 365 | M14: 371 | N14: 385
B15: 0.1792 | C15: 0.1792 | D15: 0.1792 | E15: 0.1792 | F15: 0.1792 | G15: 0.1792 | H15: 0.1792 | I15: 0.1792 | J15: 0.1792 | K15: 0.1792 | L15: 0.1792 | M15: 0.1792 | N15: 0.1848
A16: Between 55 and 64 | B16: 354 | C16: 367 | D16: 350 | E16: 376 | F16: 379 | G16: 374 | H16: 372 | I16: 370 | J16: 359 | K16: 371 | L16: 356 | M16: 362 | N16: 364
B17: 0.1748 | C17: 0.1748 | D17: 0.1748 | E17: 0.1748 | F17: 0.1748 | G17: 0.1748 | H17: 0.1748 | I17: 0.1748 | J17: 0.1748 | K17: 0.1748 | L17: 0.1748 | M17: 0.1748 | N17: 0.1748
A18: Between 65 and 74 | B18: 322 | C18: 323 | D18: 313 | E18: 332 | F18: 338 | G18: 333 | H18: 325 | I18: 324 | J18: 313 | K18: 326 | L18: 303 | M18: 307 | N18: 308
B19: 0.159 | C19: 0.154 | D19: 0.1565 | E19: 0.1544 | F19: 0.1558 | G19: 0.1554 | H19: 0.1526 | I19: 0.153 | J19: 0.1521 | K19: 0.1532 | L19: 0.1488 | M19: 0.1485 | N19: 0.1478
A20: 75 or older | B20: 106 | C20: 121 | D20: 110 | E20: 123 | F20: 121 | G20: 120 | H20: 125 | I20: 124 | J20: 122 | K20: 124 | L20: 128 | M20: 130 | N20: 133
B21: 0.0526 | C21: 0.0575 | D21: 0.0551 | E21: 0.0572 | F21: 0.0558 | G21: 0.0561 | H21: 0.0589 | I21: 0.0586 | J21: 0.0594 | K21: 0.0583 | L21: 0.0627 | M21: 0.063 | N21: 0.0637
A23: QS2: What is your sex?
A25: NOTE: Changed from gender to sex at start of WAVE 4.
A26: No:2 | B26: Wave
A27: BB4 | B27: Wave 1 | C27: Wave 2 | D27: Wave 3 | E27: Wave 4 | F27: Wave 5 | G27: Wave 6 | H27: Wave 7 | I27: Wave 8 | J27: Wave 9 | K27: Wave 10 | L27: Wave 11 | M27: Wave 12 | N27: Wave 13
A28: QS2
A29: Weighted Totals : | B29: 2023 | C29: 2098 | D29: 2000 | E29: 2152 | F29: 2169 | G29: 2141 | H29: 2129 | I29: 2117 | J29: 2055 | K29: 2125 | L29: 2037 | M29: 2070 | N29: 2083
A30: Unweighted Totals : | B30: 2023 | C30: 2098 | D30: 2000 | E30: 2152 | F30: 2169 | G30: 2141 | H30: 2129 | I30: 2117 | J30: 2055 | K30: 2125 | L30: 2037 | M30: 2070 | N30: 2083
A31: Male | B31: 974 | C31: 1008 | D31: 961 | E31: 1035 | F31: 1046 | G31: 1032 | H31: 1030 | I31: 1027 | J31: 996 | K31: 1030 | L31: 985 | M31: 999 | N31: 1009
B32: 0.4813 | C32: 0.4805 | D32: 0.4806 | E32: 0.4811 | F32: 0.4823 | G32: 0.4821 | H32: 0.4838 | I32: 0.4849 | J32: 0.4845 | K32: 0.4846 | L32: 0.4837 | M32: 0.4825 | N32: 0.4842
A33: Female | B33: 1040 | C33: 1079 | D33: 1029 | E33: 1107 | F33: 1115 | G33: 1101 | H33: 1095 | I33: 1089 | J33: 1057 | K33: 1093 | L33: 1048 | M33: 1065 | N33: 1071
B34: 0.5143 | C34: 0.5143 | D34: 0.5143 | E34: 0.5143 | F34: 0.5143 | G34: 0.5143 | H34: 0.5143 | I34: 0.5143 | J34: 0.5143 | K34: 0.5143 | L34: 0.5143 | M34: 0.5143 | N34: 0.5143
A35: Other | B35: 9 | C35: 11 | D35: 10 | E35: 10 | F35: 7 | G35: 8 | H35: 4 | I35: 2 | J35: 2 | K35: 2 | L35: 4 | M35: 7 | N35: 3
B36: 0.0044 | C36: 0.0052 | D36: 0.0051 | E36: 0.0046 | F36: 0.0035 | G36: 0.0036 | H36: 0.002 | I36: 0.0008 | J36: 0.0012 | K36: 0.0011 | L36: 0.002 | M36: 0.0032 | N36: 0.0015
C37: ++
A39: QS2a: What best describes your gender?
A40: No:3 | B40: Wave
A41: BB4 | B41: Wave 1 | C41: Wave 2 | D41: Wave 3 | E41: Wave 4 | F41: Wave 5 | G41: Wave 6 | H41: Wave 7 | I41: Wave 8 | J41: Wave 9 | K41: Wave 10 | L41: Wave 11 | M41: Wave 12 | N41: Wave 13
A42: QS2A
A43: Weighted Totals : | B43: 0 | C43: 0 | D43: 0 | E43: 2152 | F43: 2169 | G43: 2141 | H43: 2129 | I43: 2117 | J43: 2055 | K43: 2125 | L43: 2037 | M43: 2070 | N43: 2083
A44: Unweighted Totals : | B44: 0 | C44: 0 | D44: 0 | E44: 2152 | F44: 2169 | G44: 2141 | H44: 2129 | I44: 2117 | J44: 2055 | K44: 2125 | L44: 2037 | M44: 2070 | N44: 2083
A45: Man | B45: 0 | C45: 0 | D45: 0 | E45: 1030 | F45: 1048 | G45: 1029 | H45: 1029 | I45: 1022 | J45: 991 | K45: 1027 | L45: 978 | M45: 993 | N45: 1000
B46: 0 | C46: 0 | D46: 0 | E46: 0.4788 | F46: 0.483 | G46: 0.4808 | H46: 0.4834 | I46: 0.4826 | J46: 0.4823 | K46: 0.4832 | L46: 0.48 | M46: 0.4797 | N46: 0.4801
A47: Woman | B47: 0 | C47: 0 | D47: 0 | E47: 1110 | F47: 1111 | G47: 1103 | H47: 1094 | I47: 1091 | J47: 1061 | K47: 1091 | L47: 1045 | M47: 1063 | N47: 1078
B48: 0 | C48: 0 | D48: 0 | E48: 0.5156 | F48: 0.5124 | G48: 0.5151 | H48: 0.514 | I48: 0.5153 | J48: 0.5165 | K48: 0.5136 | L48: 0.513 | M48: 0.5133 | N48: 0.5175
A49: Transgender/two-spirit/non-binary | B49: 0 | C49: 0 | D49: 0 | E49: 11 | F49: 9 | G49: 9 | H49: 5 | I49: 4 | J49: 3 | K49: 4 | L49: 11 | M49: 12 | N49: 4
B50: 0 | C50: 0 | D50: 0 | E50: 0.005 | F50: 0.004 | G50: 0.004 | H50: 0.0026 | I50: 0.002 | J50: 0.0013 | K50: 0.0021 | L50: 0.0052 | M50: 0.0058 | N50: 0.0018
M51: ++
A52: Other | B52: 0 | C52: 0 | D52: 0 | E52: 1 | F52: 1 | G52: 0 | H52: 0 | I52: 0 | J52: 0 | K52: 2 | L52: 3 | M52: 2 | N52: 1
B53: 0 | C53: 0 | D53: 0 | E53: 0.0006 | F53: 0.0006 | G53: 0 | H53: 0 | I53: 0.0001 | J53: 0 | K53: 0.0011 | L53: 0.0017 | M53: 0.0012 | N53: 0.0005
L54: ++
A56: QS3: What is the highest level of formal education that you have completed?
A57: No:4 | B57: Wave
A58: BB4 | B58: Wave 1 | C58: Wave 2 | D58: Wave 3 | E58: Wave 4 | F58: Wave 5 | G58: Wave 6 | H58: Wave 7 | I58: Wave 8 | J58: Wave 9 | K58: Wave 10 | L58: Wave 11 | M58: Wave 12 | N58: Wave 13
A59: QS3
A60: Weighted Totals : | B60: 2023 | C60: 2098 | D60: 2000 | E60: 2152 | F60: 2169 | G60: 2141 | H60: 2129 | I60: 2117 | J60: 2055 | K60: 2125 | L60: 2037 | M60: 2070 | N60: 2083
A61: Unweighted Totals : | B61: 2023 | C61: 2098 | D61: 2000 | E61: 2152 | F61: 2169 | G61: 2141 | H61: 2129 | I61: 2117 | J61: 2055 | K61: 2125 | L61: 2037 | M61: 2070 | N61: 2083
A62: Grade 8 or less | B62: 5 | C62: 3 | D62: 2 | E62: 2 | F62: 4 | G62: 4 | H62: 3 | I62: 3 | J62: 4 | K62: 4 | L62: 8 | M62: 8 | N62: 7
B63: 0.0027 | C63: 0.0014 | D63: 0.001 | E63: 0.001 | F63: 0.0018 | G63: 0.0019 | H63: 0.0016 | I63: 0.0015 | J63: 0.0018 | K63: 0.0018 | L63: 0.0037 | M63: 0.0038 | N63: 0.0032
A64: Some high school | B64: 64 | C64: 67 | D64: 60 | E64: 57 | F64: 57 | G64: 61 | H64: 56 | I64: 52 | J64: 57 | K64: 57 | L64: 56 | M64: 57 | N64: 60
B65: 0.0316 | C65: 0.0318 | D65: 0.03 | E65: 0.0263 | F65: 0.0261 | G65: 0.0285 | H65: 0.0264 | I65: 0.0245 | J65: 0.0277 | K65: 0.027 | L65: 0.0277 | M65: 0.0276 | N65: 0.0288
A66: High school diploma or equivalent | B66: 421 | C66: 393 | D66: 381 | E66: 389 | F66: 408 | G66: 403 | H66: 403 | I66: 392 | J66: 385 | K66: 406 | L66: 389 | M66: 376 | N66: 389
B67: 0.208 | C67: 0.1872 | D67: 0.1907 | E67: 0.1808 | F67: 0.188 | G67: 0.1881 | H67: 0.1892 | I67: 0.1851 | J67: 0.1874 | K67: 0.1913 | L67: 0.1912 | M67: 0.1817 | N67: 0.1868
B68: ++
A69: Registered Apprenticeship or other trades certificate or diploma | B69: 137 | C69: 162 | D69: 150 | E69: 166 | F69: 164 | G69: 156 | H69: 144 | I69: 161 | J69: 157 | K69: 158 | L69: 152 | M69: 155 | N69: 155
B70: 0.0677 | C70: 0.077 | D70: 0.0752 | E70: 0.0771 | F70: 0.0757 | G70: 0.0729 | H70: 0.0677 | I70: 0.0759 | J70: 0.0762 | K70: 0.0743 | L70: 0.0745 | M70: 0.075 | N70: 0.0743
A71: Partial college/university education | B71: 287 | C71: 320 | D71: 294 | E71: 320 | F71: 326 | G71: 323 | H71: 337 | I71: 322 | J71: 322 | K71: 310 | L71: 292 | M71: 293 | N71: 282
B72: 0.1416 | C72: 0.1526 | D72: 0.1468 | E72: 0.1486 | F72: 0.1504 | G72: 0.1507 | H72: 0.1581 | I72: 0.1519 | J72: 0.1565 | K72: 0.1457 | L72: 0.1432 | M72: 0.1414 | N72: 0.1355
A73: College, CEGEP or other non-university certificate or diploma | B73: 559 | C73: 583 | D73: 568 | E73: 633 | F73: 620 | G73: 612 | H73: 606 | I73: 612 | J73: 572 | K73: 612 | L73: 586 | M73: 618 | N73: 624
B74: 0.2762 | C74: 0.2779 | D74: 0.2842 | E74: 0.2941 | F74: 0.286 | G74: 0.2859 | H74: 0.2848 | I74: 0.289 | J74: 0.2785 | K74: 0.288 | L74: 0.2877 | M74: 0.2986 | N74: 0.2994
A75: University certificate or diploma below bachelor's level | B75: 81 | C75: 67 | D75: 61 | E75: 64 | F75: 65 | G75: 63 | H75: 66 | I75: 71 | J75: 75 | K75: 80 | L75: 75 | M75: 73 | N75: 76
B76: 0.0398 | C76: 0.032 | D76: 0.0305 | E76: 0.0298 | F76: 0.03 | G76: 0.0294 | H76: 0.031 | I76: 0.0336 | J76: 0.0365 | K76: 0.0378 | L76: 0.0371 | M76: 0.0353 | N76: 0.0367
A77: Bachelor's degree | B77: 333 | C77: 350 | D77: 341 | E77: 367 | F77: 367 | G77: 359 | H77: 353 | I77: 346 | J77: 335 | K77: 345 | L77: 335 | M77: 340 | N77: 338
B78: 0.1644 | C78: 0.167 | D78: 0.1703 | E78: 0.1705 | F78: 0.1692 | G78: 0.1678 | H78: 0.1659 | I78: 0.1634 | J78: 0.1631 | K78: 0.1623 | L78: 0.1643 | M78: 0.164 | N78: 0.1623
A79: Postgraduate degree above bachelor's level | B79: 137 | C79: 153 | D79: 143 | E79: 154 | F79: 158 | G79: 160 | H79: 160 | I79: 159 | J79: 149 | K79: 153 | L79: 144 | M79: 150 | N79: 152
B80: 0.0679 | C80: 0.0731 | D80: 0.0713 | E80: 0.0717 | F80: 0.0728 | G80: 0.0748 | H80: 0.0752 | I80: 0.0751 | J80: 0.0725 | K80: 0.0719 | L80: 0.0707 | M80: 0.0727 | N80: 0.073
A82: QS4: Are you a health care provider (i.e., nurse, medical doctor, paramedic, first responder, nurse practitioner, pharmacist etc.)?
A83: No:5 | B83: Wave
A84: BB4 | B84: Wave 1 | C84: Wave 2 | D84: Wave 3 | E84: Wave 4 | F84: Wave 5 | G84: Wave 6 | H84: Wave 7 | I84: Wave 8 | J84: Wave 9 | K84: Wave 10 | L84: Wave 11 | M84: Wave 12 | N84: Wave 13
A85: QS4
A86: Weighted Totals : | B86: 2023 | C86: 1961 | D86: 2000 | E86: 2152 | F86: 2169 | G86: 2141 | H86: 2129 | I86: 2117 | J86: 2055 | K86: 2125 | L86: 2037 | M86: 2070 | N86: 2083
A87: Unweighted Totals : | B87: 2023 | C87: 1969 | D87: 2000 | E87: 2152 | F87: 2169 | G87: 2141 | H87: 2129 | I87: 2117 | J87: 2055 | K87: 2125 | L87: 2037 | M87: 2070 | N87: 2083
A88: Yes | B88: 159 | C88: 124 | D88: 112 | E88: 135 | F88: 146 | G88: 161 | H88: 148 | I88: 143 | J88: 133 | K88: 135 | L88: 147 | M88: 134 | N88: 128
B89: 0.0786 | C89: 0.0633 | D89: 0.0558 | E89: 0.0627 | F89: 0.0673 | G89: 0.0752 | H89: 0.0696 | I89: 0.0674 | J89: 0.0649 | K89: 0.0636 | L89: 0.0721 | M89: 0.0645 | N89: 0.0615
B90: ++ | D90: --
A91: No | B91: 1864 | C91: 1837 | D91: 1888 | E91: 2017 | F91: 2023 | G91: 1980 | H91: 1981 | I91: 1974 | J91: 1922 | K91: 1990 | L91: 1890 | M91: 1936 | N91: 1955
B92: 0.9214 | C92: 0.9367 | D92: 0.9442 | E92: 0.9373 | F92: 0.9327 | G92: 0.9248 | H92: 0.9304 | I92: 0.9326 | J92: 0.9351 | K92: 0.9364 | L92: 0.9279 | M92: 0.9355 | N92: 0.9385
B93: -- | D93: ++
A95: QS4a: Are you a frontline worker (i.e., gas station attendant, grocery store clerk, etc.)?
A96: No:6 | B96: Wave
A97: BB4 | B97: Wave 1 | C97: Wave 2 | D97: Wave 3 | E97: Wave 4 | F97: Wave 5 | G97: Wave 6 | H97: Wave 7 | I97: Wave 8 | J97: Wave 9 | K97: Wave 10 | L97: Wave 11 | M97: Wave 12 | N97: Wave 13
A98: QS4A
A99: Weighted Totals : | B99: 0 | C99: 2098 | D99: 2000 | E99: 2152 | F99: 2169 | G99: 2141 | H99: 2129 | I99: 2117 | J99: 2055 | K99: 2125 | L99: 2037 | M99: 2070 | N99: 2083
A100: Unweighted Totals : | B100: 0 | C100: 2098 | D100: 2000 | E100: 2152 | F100: 2169 | G100: 2141 | H100: 2129 | I100: 2117 | J100: 2055 | K100: 2125 | L100: 2037 | M100: 2070 | N100: 2083
A101: Yes | B101: 0 | C101: 391 | D101: 329 | E101: 370 | F101: 366 | G101: 378 | H101: 383 | I101: 363 | J101: 347 | K101: 368 | L101: 383 | M101: 359 | N101: 368
B102: 0 | C102: 0.1866 | D102: 0.1645 | E102: 0.1721 | F102: 0.1687 | G102: 0.1764 | H102: 0.1797 | I102: 0.1714 | J102: 0.1687 | K102: 0.1732 | L102: 0.1879 | M102: 0.1736 | N102: 0.1768
A103: No | B103: 0 | C103: 1707 | D103: 1671 | E103: 1782 | F103: 1803 | G103: 1763 | H103: 1746 | I103: 1754 | J103: 1708 | K103: 1757 | L103: 1654 | M103: 1711 | N103: 1715
B104: 0 | C104: 0.8134 | D104: 0.8355 | E104: 0.8279 | F104: 0.8313 | G104: 0.8236 | H104: 0.8203 | I104: 0.8286 | J104: 0.8313 | K104: 0.8268 | L104: 0.8121 | M104: 0.8264 | N104: 0.8232
A106: QS5: Do you have a serious, long-term illness, like diabetes, emphysema, or high blood pressure?
A107: No:7 | B107: Wave
A108: BB4 | B108: Wave 1 | C108: Wave 2 | D108: Wave 3 | E108: Wave 4 | F108: Wave 5 | G108: Wave 6 | H108: Wave 7 | I108: Wave 8 | J108: Wave 9 | K108: Wave 10 | L108: Wave 11 | M108: Wave 12 | N108: Wave 13
A109: QS5
A110: Weighted Totals : | B110: 2023 | C110: 1961 | D110: 2000 | E110: 2152 | F110: 2169 | G110: 2141 | H110: 2129 | I110: 2117 | J110: 2055 | K110: 2125 | L110: 2037 | M110: 2070 | N110: 2083
A111: Unweighted Totals : | B111: 2023 | C111: 1969 | D111: 2000 | E111: 2152 | F111: 2169 | G111: 2141 | H111: 2129 | I111: 2117 | J111: 2055 | K111: 2125 | L111: 2037 | M111: 2070 | N111: 2083
A112: Yes | B112: 504 | C112: 500 | D112: 510 | E112: 543 | F112: 562 | G112: 585 | H112: 611 | I112: 613 | J112: 585 | K112: 576 | L112: 564 | M112: 586 | N112: 603
B113: 0.2492 | C113: 0.2551 | D113: 0.2551 | E113: 0.2525 | F113: 0.2589 | G113: 0.2733 | H113: 0.2868 | I113: 0.2896 | J113: 0.2847 | K113: 0.2711 | L113: 0.2766 | M113: 0.2831 | N113: 0.2893
B114: -- | E114: -- | I114: ++
A115: No | B115: 1468 | C115: 1413 | D115: 1445 | E115: 1569 | F115: 1559 | G115: 1523 | H115: 1485 | I115: 1483 | J115: 1451 | K115: 1514 | L115: 1449 | M115: 1458 | N115: 1446
B116: 0.7257 | C116: 0.7206 | D116: 0.7226 | E116: 0.7293 | F116: 0.7186 | G116: 0.7115 | H116: 0.6974 | I116: 0.7007 | J116: 0.706 | K116: 0.7126 | L116: 0.7113 | M116: 0.7046 | N116: 0.6941
A117: Don’t know | B117: 51 | C117: 48 | D117: 45 | E117: 39 | F117: 49 | G117: 32 | H117: 34 | I117: 21 | J117: 19 | K117: 35 | L117: 25 | M117: 26 | N117: 35
B118: 0.0251 | C118: 0.0243 | D118: 0.0223 | E118: 0.0183 | F118: 0.0225 | G118: 0.0151 | H118: 0.0157 | I118: 0.0097 | J118: 0.0092 | K118: 0.0163 | L118: 0.0121 | M118: 0.0123 | N118: 0.0166
B119: +++ | C119: +++ | D119: ++ | F119: ++ | I119: --- | J119: ---
A121: QS6: What is the size of the community you live in?
A122: No:8 | B122: Wave
A123: BB4 | B123: Wave 1 | C123: Wave 2 | D123: Wave 3 | E123: Wave 4 | F123: Wave 5 | G123: Wave 6 | H123: Wave 7 | I123: Wave 8 | J123: Wave 9 | K123: Wave 10 | L123: Wave 11 | M123: Wave 12 | N123: Wave 13
A124: QS6
A125: Weighted Totals : | B125: 2023 | C125: 1961 | D125: 2000 | E125: 2152 | F125: 2169 | G125: 2141 | H125: 2129 | I125: 2117 | J125: 2055 | K125: 2125 | L125: 2037 | M125: 2070 | N125: 2083
A126: Unweighted Totals : | B126: 2023 | C126: 1969 | D126: 2000 | E126: 2152 | F126: 2169 | G126: 2141 | H126: 2129 | I126: 2117 | J126: 2055 | K126: 2125 | L126: 2037 | M126: 2070 | N126: 2083
A127: Major metropolitan area with population of 1,000,000 or more | B127: 598 | C127: 581 | D127: 591 | E127: 636 | F127: 660 | G127: 644 | H127: 673 | I127: 646 | J127: 623 | K127: 658 | L127: 632 | M127: 657 | N127: 635
B128: 0.2956 | C128: 0.2964 | D128: 0.2953 | E128: 0.2956 | F128: 0.3041 | G128: 0.3006 | H128: 0.316 | I128: 0.3054 | J128: 0.3031 | K128: 0.3095 | L128: 0.3101 | M128: 0.3175 | N128: 0.3047
A129: Large urban centre with population of 100,000 or more | B129: 600 | C129: 596 | D129: 618 | E129: 671 | F129: 668 | G129: 650 | H129: 627 | I129: 666 | J129: 657 | K129: 683 | L129: 666 | M129: 649 | N129: 676
B130: 0.2964 | C130: 0.3041 | D130: 0.3089 | E130: 0.3119 | F130: 0.3079 | G130: 0.3034 | H130: 0.2943 | I130: 0.3144 | J130: 0.3196 | K130: 0.3213 | L130: 0.3267 | M130: 0.3135 | N130: 0.3243
A131: Medium population centre with population of between 30,000 and 99,999 | B131: 341 | C131: 317 | D131: 330 | E131: 350 | F131: 346 | G131: 354 | H131: 350 | I131: 336 | J131: 301 | K131: 312 | L131: 308 | M131: 317 | N131: 292
B132: 0.1686 | C132: 0.1619 | D132: 0.165 | E132: 0.1626 | F132: 0.1595 | G132: 0.1652 | H132: 0.1645 | I132: 0.1586 | J132: 0.1467 | K132: 0.1469 | L132: 0.151 | M132: 0.1532 | N132: 0.1401
N133: --
A134: Small population centre with population between 1,000 and 29,999 | B134: 363 | C134: 349 | D134: 329 | E134: 371 | F134: 370 | G134: 365 | H134: 350 | I134: 338 | J134: 345 | K134: 347 | L134: 320 | M134: 317 | N134: 352
B135: 0.1794 | C135: 0.1777 | D135: 0.1646 | E135: 0.1724 | F135: 0.1707 | G135: 0.1704 | H135: 0.1642 | I135: 0.1596 | J135: 0.1678 | K135: 0.1632 | L135: 0.157 | M135: 0.1532 | N135: 0.1691
A136: Rural area with population of less than 1,000 | B136: 122 | C136: 118 | D136: 132 | E136: 124 | F136: 125 | G136: 129 | H136: 130 | I136: 131 | J136: 129 | K136: 126 | L136: 112 | M136: 129 | N136: 129
B137: 0.0601 | C137: 0.06 | D137: 0.0661 | E137: 0.0576 | F137: 0.0578 | G137: 0.0603 | H137: 0.0609 | I137: 0.0619 | J137: 0.0627 | K137: 0.0591 | L137: 0.0552 | M137: 0.0626 | N137: 0.0617
A139: QS7: In which province or territory do you live?
A140: No:9 | B140: Wave
A141: BB4 | B141: Wave 1 | C141: Wave 2 | D141: Wave 3 | E141: Wave 4 | F141: Wave 5 | G141: Wave 6 | H141: Wave 7 | I141: Wave 8 | J141: Wave 9 | K141: Wave 10 | L141: Wave 11 | M141: Wave 12 | N141: Wave 13
A142: QS7
A143: Weighted Totals : | B143: 2023 | C143: 2098 | D143: 2000 | E143: 2152 | F143: 2169 | G143: 2141 | H143: 2129 | I143: 2117 | J143: 2055 | K143: 2125 | L143: 2037 | M143: 2070 | N143: 2083
A144: Unweighted Totals : | B144: 2023 | C144: 2098 | D144: 2000 | E144: 2152 | F144: 2169 | G144: 2141 | H144: 2129 | I144: 2117 | J144: 2055 | K144: 2125 | L144: 2037 | M144: 2070 | N144: 2083
A145: Alberta | B145: 226 | C145: 235 | D145: 224 | E145: 241 | F145: 242 | G145: 239 | H145: 238 | I145: 237 | J145: 230 | K145: 238 | L145: 228 | M145: 231 | N145: 233
B146: 0.1118 | C146: 0.1118 | D146: 0.1118 | E146: 0.1118 | F146: 0.1118 | G146: 0.1118 | H146: 0.1118 | I146: 0.1118 | J146: 0.1118 | K146: 0.1118 | L146: 0.1118 | M146: 0.1118 | N146: 0.1118
A147: British Columbia | B147: 274 | C147: 284 | D147: 271 | E147: 291 | F147: 294 | G147: 290 | H147: 288 | I147: 286 | J147: 278 | K147: 288 | L147: 276 | M147: 280 | N147: 282
B148: 0.1353 | C148: 0.1353 | D148: 0.1353 | E148: 0.1353 | F148: 0.1353 | G148: 0.1353 | H148: 0.1353 | I148: 0.1353 | J148: 0.1353 | K148: 0.1353 | L148: 0.1353 | M148: 0.1353 | N148: 0.1353
A149: Manitoba | B149: 71 | C149: 73 | D149: 70 | E149: 75 | F149: 76 | G149: 75 | H149: 75 | I149: 74 | J149: 72 | K149: 74 | L149: 71 | M149: 73 | N149: 73
B150: 0.035 | C150: 0.035 | D150: 0.035 | E150: 0.035 | F150: 0.035 | G150: 0.035 | H150: 0.035 | I150: 0.035 | J150: 0.035 | K150: 0.035 | L150: 0.035 | M150: 0.035 | N150: 0.035
A151: New Brunswick | B151: 44 | C151: 46 | D151: 44 | E151: 47 | F151: 47 | G151: 47 | H151: 46 | I151: 46 | J151: 45 | K151: 46 | L151: 44 | M151: 45 | N151: 45
B152: 0.0218 | C152: 0.0218 | D152: 0.0218 | E152: 0.0218 | F152: 0.0218 | G152: 0.0218 | H152: 0.0218 | I152: 0.0218 | J152: 0.0218 | K152: 0.0218 | L152: 0.0218 | M152: 0.0218 | N152: 0.0218
A153: Newfoundland and Labrador | B153: 31 | C153: 32 | D153: 31 | E153: 33 | F153: 33 | G153: 33 | H153: 32 | I153: 32 | J153: 31 | K153: 32 | L153: 31 | M153: 32 | N153: 32
B154: 0.0153 | C154: 0.0153 | D154: 0.0153 | E154: 0.0153 | F154: 0.0153 | G154: 0.0153 | H154: 0.0153 | I154: 0.0153 | J154: 0.0153 | K154: 0.0153 | L154: 0.0153 | M154: 0.0153 | N154: 0.0153
A155: Northwest Territories | B155: 3 | C155: 3 | D155: 3 | E155: 3 | F155: 3 | G155: 3 | H155: 3 | I155: 3 | J155: 3 | K155: 3 | L155: 3 | M155: 3 | N155: 3
B156: 0.0014 | C156: 0.0015 | D156: 0.0014 | E156: 0.0013 | F156: 0.0014 | G156: 0.0014 | H156: 0.0014 | I156: 0.0014 | J156: 0.0017 | K156: 0.0014 | L156: 0.0016 | M156: 0.0015 | N156: 0.0015
A157: Nova Scotia | B157: 55 | C157: 57 | D157: 54 | E157: 58 | F157: 59 | G157: 58 | H157: 58 | I157: 57 | J157: 56 | K157: 57 | L157: 55 | M157: 56 | N157: 56
B158: 0.027 | C158: 0.027 | D158: 0.027 | E158: 0.027 | F158: 0.027 | G158: 0.027 | H158: 0.027 | I158: 0.027 | J158: 0.027 | K158: 0.027 | L158: 0.027 | M158: 0.027 | N158: 0.027
A159: Nunavut | B159: 0 | C159: 0 | D159: 0 | E159: 1 | F159: 1 | G159: 0 | H159: 1 | I159: 1 | J159: 1 | K159: 0 | L159: 0 | M159: 0 | N159: 0
B160: 0 | C160: 0 | D160: 0 | E160: 0.0002 | F160: 0.0002 | G160: 0.0002 | H160: 0.0002 | I160: 0.0003 | J160: 0.0003 | K160: 0.0002 | L160: 0.0002 | M160: 0.0002 | N160: 0
A161: Ontario | B161: 775 | C161: 803 | D161: 766 | E161: 824 | F161: 830 | G161: 820 | H161: 815 | I161: 810 | J161: 787 | K161: 814 | L161: 780 | M161: 793 | N161: 797
B162: 0.3828 | C162: 0.3829 | D162: 0.3829 | E162: 0.3828 | F162: 0.3829 | G162: 0.3829 | H162: 0.3828 | I162: 0.3828 | J162: 0.3829 | K162: 0.3829 | L162: 0.3829 | M162: 0.3829 | N162: 0.3828
A163: Prince Edward Island | B163: 8 | C163: 9 | D163: 8 | E163: 9 | F163: 9 | G163: 9 | H163: 9 | I163: 9 | J163: 8 | K163: 9 | L163: 8 | M163: 8 | N163: 9
B164: 0.0041 | C164: 0.0041 | D164: 0.0041 | E164: 0.0041 | F164: 0.0041 | G164: 0.0041 | H164: 0.0041 | I164: 0.0041 | J164: 0.0041 | K164: 0.0041 | L164: 0.0041 | M164: 0.0041 | N164: 0.0041
A165: Quebec | B165: 473 | C165: 491 | D165: 468 | E165: 504 | F165: 508 | G165: 501 | H165: 498 | I165: 495 | J165: 481 | K165: 497 | L165: 477 | M165: 484 | N165: 487
B166: 0.234 | C166: 0.234 | D166: 0.234 | E166: 0.234 | F166: 0.234 | G166: 0.234 | H166: 0.234 | I166: 0.234 | J166: 0.234 | K166: 0.234 | L166: 0.234 | M166: 0.234 | N166: 0.234
A167: Saskatchewan | B167: 61 | C167: 63 | D167: 60 | E167: 64 | F167: 65 | G167: 64 | H167: 64 | I167: 63 | J167: 62 | K167: 64 | L167: 61 | M167: 62 | N167: 62
B168: 0.0299 | C168: 0.0299 | D168: 0.0299 | E168: 0.0299 | F168: 0.0299 | G168: 0.0299 | H168: 0.0299 | I168: 0.0299 | J168: 0.0299 | K168: 0.0299 | L168: 0.0299 | M168: 0.0299 | N168: 0.0299
A169: Yukon | B169: 3 | C169: 3 | D169: 3 | E169: 3 | F169: 3 | G169: 3 | H169: 3 | I169: 3 | J169: 2 | K169: 3 | L169: 2 | M169: 3 | N169: 3
B170: 0.0015 | C170: 0.0015 | D170: 0.0015 | E170: 0.0013 | F170: 0.0013 | G170: 0.0013 | H170: 0.0013 | I170: 0.0012 | J170: 0.001 | K170: 0.0013 | L170: 0.0011 | M170: 0.0012 | N170: 0.0015
A172: QS8: Do you have or live with children under 18 years of age in your home?
A173: No:10 | B173: Wave
A174: BB4 | B174: Wave 1 | C174: Wave 2 | D174: Wave 3 | E174: Wave 4 | F174: Wave 5 | G174: Wave 6 | H174: Wave 7 | I174: Wave 8 | J174: Wave 9 | K174: Wave 10 | L174: Wave 11 | M174: Wave 12 | N174: Wave 13
A175: QS8
A176: Weighted Totals : | B176: 2023 | C176: 2098 | D176: 2000 | E176: 2152 | F176: 2169 | G176: 2141 | H176: 2129 | I176: 2117 | J176: 2055 | K176: 2125 | L176: 2037 | M176: 2070 | N176: 2083
A177: Unweighted Totals : | B177: 2023 | C177: 2098 | D177: 2000 | E177: 2152 | F177: 2169 | G177: 2141 | H177: 2129 | I177: 2117 | J177: 2055 | K177: 2125 | L177: 2037 | M177: 2070 | N177: 2083
A178: Yes | B178: 560 | C178: 581 | D178: 553 | E178: 595 | F178: 600 | G178: 592 | H178: 589 | I178: 586 | J178: 569 | K178: 588 | L178: 564 | M178: 573 | N178: 524
B179: 0.2767 | C179: 0.2767 | D179: 0.2767 | E179: 0.2767 | F179: 0.2767 | G179: 0.2767 | H179: 0.2767 | I179: 0.2767 | J179: 0.2767 | K179: 0.2767 | L179: 0.2767 | M179: 0.2767 | N179: 0.2517
N180: --
A181: No | B181: 1463 | C181: 1517 | D181: 1447 | E181: 1557 | F181: 1569 | G181: 1549 | H181: 1540 | I181: 1531 | J181: 1486 | K181: 1537 | L181: 1473 | M181: 1497 | N181: 1559
B182: 0.7233 | C182: 0.7233 | D182: 0.7233 | E182: 0.7233 | F182: 0.7233 | G182: 0.7233 | H182: 0.7233 | I182: 0.7233 | J182: 0.7233 | K182: 0.7233 | L182: 0.7233 | M182: 0.7233 | N182: 0.7483
N183: ++
A185: QS8A: How many children under 18 years of age live in your home?
A186: No:11 | B186: Wave
A187: BB4 | B187: Wave 1 | C187: Wave 2 | D187: Wave 3 | E187: Wave 4 | F187: Wave 5 | G187: Wave 6 | H187: Wave 7 | I187: Wave 8 | J187: Wave 9 | K187: Wave 10 | L187: Wave 11 | M187: Wave 12 | N187: Wave 13
A188: QS8A
A189: Weighted Totals : | B189: 0 | C189: 0 | D189: 0 | E189: 599 | F189: 595 | G189: 591 | H189: 583 | I189: 571 | J189: 546 | K189: 530 | L189: 492 | M189: 500 | N189: 524
A190: Unweighted Totals : | B190: 0 | C190: 0 | D190: 0 | E190: 598 | F190: 601 | G190: 594 | H190: 579 | I190: 564 | J190: 529 | K190: 508 | L190: 477 | M190: 487 | N190: 497
A191: 1 | B191: 0 | C191: 0 | D191: 0 | E191: 303 | F191: 302 | G191: 320 | H191: 306 | I191: 295 | J191: 272 | K191: 255 | L191: 255 | M191: 249 | N191: 254
B192: 0 | C192: 0 | D192: 0 | E192: 0.5062 | F192: 0.5083 | G192: 0.542 | H192: 0.524 | I192: 0.5159 | J192: 0.4979 | K192: 0.4806 | L192: 0.519 | M192: 0.4983 | N192: 0.4852
A193: 2 | B193: 0 | C193: 0 | D193: 0 | E193: 207 | F193: 208 | G193: 200 | H193: 198 | I193: 187 | J193: 186 | K193: 194 | L193: 169 | M193: 181 | N193: 207
B194: 0 | C194: 0 | D194: 0 | E194: 0.3453 | F194: 0.3505 | G194: 0.3393 | H194: 0.339 | I194: 0.3279 | J194: 0.3406 | K194: 0.3664 | L194: 0.3432 | M194: 0.3624 | N194: 0.394
N195: ++
A196: 3+ | B196: 0 | C196: 0 | D196: 0 | E196: 89 | F196: 84 | G196: 70 | H196: 80 | I196: 89 | J196: 88 | K196: 81 | L196: 68 | M196: 70 | N196: 63
B197: 0 | C197: 0 | D197: 0 | E197: 0.1485 | F197: 0.1411 | G197: 0.1187 | H197: 0.137 | I197: 0.1563 | J197: 0.1615 | K197: 0.153 | L197: 0.1378 | M197: 0.1393 | N197: 0.1207
A198: Mean : | B198: * | C198: * | D198: * | E198: 1.7 | F198: 1.7 | G198: 1.6 | H198: 1.7 | I198: 1.7 | J198: 1.7 | K198: 1.7 | L198: 1.6 | M198: 1.7 | N198: 1.7
A199: Standard Deviation : | B199: * | C199: * | D199: * | E199: 1 | F199: 0.8 | G199: 0.8 | H199: 1 | I199: 0.9 | J199: 0.9 | K199: 0.8 | L199: 0.8 | M199: 0.8 | N199: 0.9
A200: Student's T : | B200: * | C200: * | D200: * | E200: -- | F200: -- | G200: 99 | H200: -- | I200: -- | J200: -- | K200: -- | L200: -- | M200: -- | N200: --
A202: QS8B. What are the ages of the children living in your home? Select all that apply.
A203: No:12 | B203: Wave
A204: BB4 | B204: Wave 1 | C204: Wave 2 | D204: Wave 3 | E204: Wave 4 | F204: Wave 5 | G204: Wave 6 | H204: Wave 7 | I204: Wave 8 | J204: Wave 9 | K204: Wave 10 | L204: Wave 11 | M204: Wave 12 | N204: Wave 13
A205: QS8B
A206: Weighted Totals : | B206: 0 | C206: 0 | D206: 0 | E206: 599 | F206: 595 | G206: 591 | H206: 583 | I206: 571 | J206: 546 | K206: 530 | L206: 492 | M206: 500 | N206: 524
A207: Unweighted Totals : | B207: 0 | C207: 0 | D207: 0 | E207: 598 | F207: 601 | G207: 594 | H207: 579 | I207: 564 | J207: 529 | K207: 508 | L207: 477 | M207: 487 | N207: 497
A208: Under 6 years old | B208: 0 | C208: 0 | D208: 0 | E208: 234 | F208: 241 | G208: 223 | H208: 232 | I208: 235 | J208: 228 | K208: 215 | L208: 191 | M208: 209 | N208: 222
B209: 0 | C209: 0 | D209: 0 | E209: 0.3903 | F209: 0.4051 | G209: 0.3776 | H209: 0.3982 | I209: 0.4105 | J209: 0.4173 | K209: 0.4059 | L209: 0.3879 | M209: 0.4193 | N209: 0.4234
A210: 6 to 11 years old | B210: 0 | C210: 0 | D210: 0 | E210: 232 | F210: 224 | G210: 226 | H210: 211 | I210: 217 | J210: 205 | K210: 211 | L210: 184 | M210: 196 | N210: 199
B211: 0 | C211: 0 | D211: 0 | E211: 0.3881 | F211: 0.3765 | G211: 0.3822 | H211: 0.3615 | I211: 0.379 | J211: 0.3755 | K211: 0.3991 | L211: 0.3736 | M211: 0.3931 | N211: 0.3793
A212: 12 to 17 years old | B212: 0 | C212: 0 | D212: 0 | E212: 293 | F212: 282 | G212: 285 | H212: 289 | I212: 285 | J212: 263 | K212: 261 | L212: 249 | M212: 238 | N212: 244
B213: 0 | C213: 0 | D213: 0 | E213: 0.4899 | F213: 0.475 | G213: 0.4821 | H213: 0.4955 | I213: 0.4992 | J213: 0.4818 | K213: 0.4921 | L213: 0.5056 | M213: 0.4757 | N213: 0.465
... 4130 more rows
